bitfinex-derivatives/quotes_SOLF0:USTF0_20220102
["timestamp","ask_amount","ask_price","bid_price","bid_amount"]
[1641129239848,2.75606566,175.68,175.61,18.23750294]
[1641129240550,2.75606566,175.68,175.61,12.11567481]
[1641129240752,14.88026855,175.68,175.61,1.28531176]
[1641129242056,27.66479,175.66,175.61,1.28531176]
[1641129242853,2.75606566,175.65,175.61,1.28531176]
[1641129244053,27.66479,175.66,175.61,1.28531176]
[1641129245157,8.44734658,175.65,175.6,12.11567481]
[1641129245357,3.0,175.64,175.6,12.11567481]
[1641129245557,3.0,175.64,175.6,7.481e-05]
[1641129245859,5.69200558,175.62,175.6,7.481e-05]
[1641129246059,27.66479,175.61,175.56,32.28988032]
[1641129246458,32.49979,175.61,175.52,31.3634]
[1641129246659,32.49979,175.61,175.5,32.28988032]
[1641129246858,32.49979,175.61,175.53,3.0]
[1641129247260,10.04871479,175.65,175.57,3.0]
[1641129247458,65.6525886,175.66,175.57,9.478]
[1641129247659,33.35549992,175.66,175.57,9.478]
[1641129247961,33.35549992,175.66,175.57,6.478]
[1641129248359,33.35549992,175.66,175.57,9.478]
[1641129248560,27.66479,175.66,175.57,9.478]
[1641129249558,27.66479,175.66,175.57,39.5437]
[1641129250058,27.66479,175.66,175.58,6.12235357]
[1641129254869,10.04993056,175.65,175.57,30.0657]
[1641129255070,40.45873056,175.65,175.57,30.0657]
[1641129255970,30.4088,175.65,175.57,30.0657]
[1641129256670,33.24579,175.66,175.57,30.0657]
[1641129257276,33.24579,175.66,175.58,6.11991266]
[1641129259179,5.581,175.66,175.58,6.11991266]
[1641129260483,27.66479,175.62,175.58,6.11991266]
[1641129260685,33.22879,175.62,175.58,6.11991266]
[1641129261184,33.22879,175.62,175.53,62.95467032]
[1641129261385,33.22879,175.62,175.54,30.343]
[1641129261785,33.22879,175.62,175.54,36.46306391]
[1641129261984,33.22879,175.62,175.54,6.12006391]
[1641129262184,36.22879,175.62,175.54,6.12006391]
[1641129262384,3.0,175.59,175.54,6.12006391]
[1641129262585,55.32958,175.55,175.54,6.12006391]
[1641129262786,62.21358,175.55,175.51,6.12006391]
[1641129263286,6.884,175.55,175.51,6.12006391]
[1641129263690,6.884,175.55,175.49,6.12006391]
[1641129263891,8.564,175.62,175.49,6.12006391]
[1641129264090,5.564,175.62,175.54,3.0]
[1641129264794,37.71666619,175.63,175.54,3.0]
[1641129264995,37.71666619,175.63,175.53,29.9202]
[1641129265195,37.71666619,175.63,175.55,3.0]
[1641129265391,27.66479,175.63,175.53,29.9202]
[1641129265593,27.66479,175.63,175.54,6.12006391]
[1641129268699,27.66479,175.59,175.54,6.12006391]
[1641129268898,32.92479,175.59,175.54,6.12006391]
[1641129270602,5.26,175.59,175.54,6.12006391]
[1641129272203,27.66479,175.63,175.54,6.12006391]
[1641129276009,37.98698911,175.68,175.58,3.0]
[1641129276209,30.4576,175.67,175.58,7.821]
[1641129276613,12.12788834,175.65,175.58,4.821]
[1641129277015,12.12788834,175.65,175.58,7.821]
[1641129277511,12.12788834,175.65,175.58,4.821]
[1641129277711,12.12788834,175.65,175.57,42.79267834]
[1641129278513,17.06188834,175.66,175.58,18.24795225]
[1641129278712,27.66479,175.65,175.58,18.24795225]
[1641129279513,27.66479,175.65,175.55,3.0]
[1641129279514,39.79267834,175.65,175.57,12.12788834]
[1641129280315,12.12788834,175.64,175.56,12.12788834]
[1641129280514,42.90528834,175.64,175.56,12.12788834]
[1641129280716,27.66479,175.61,175.56,12.12788834]
[1641129280915,33.61479,175.61,175.56,12.12788834]
[1641129281115,33.61479,175.61,175.55,12.12788834]
[1641129285624,2.75857056,175.6,175.55,12.12788834]
[1641129286725,30.42336056,175.6,175.55,12.12788834]
[1641129287525,2.75857056,175.59,175.54,1.28434617]
[1641129291729,2.75857056,175.59,175.54,19.53257409]
[1641129296233,2.75857056,175.59,175.54,13.41223451]
[1641129296434,2.75857056,175.59,175.54,1.28434617]
[1641129297137,27.66479,175.57,175.54,1.28434617]
[1641129297339,32.64579,175.57,175.54,1.28434617]
[1641129297839,36.68908955,175.57,175.54,1.28434617]
[1641129298440,4.04329955,175.56,175.51,12.12788834]
[1641129299343,27.66479,175.52,175.51,12.12788834]
[1641129299741,27.66479,175.52,175.49,19.5327473]
[1641129301244,27.66479,175.52,175.49,12.12788834]
[1641129301445,27.66479,175.52,175.48,31.4318]
[1641129302045,21.19437657,175.52,175.48,31.4318]
[1641129305750,29.797,175.56,175.48,31.4318]
[1641129307350,27.66479,175.53,175.48,31.4318]
[1641129309250,27.66479,175.53,175.5,12.12788834]
[1641129310651,27.66479,175.53,175.51,12.12788834]
[1641129313053,27.66479,175.53,175.5,12.12788834]
[1641129313658,27.66479,175.53,175.49,19.53128424]
[1641129314358,31.67427774,175.53,175.49,19.53128424]
[1641129315359,31.67427774,175.53,175.52,4.04433993]
[1641129316167,27.66479,175.53,175.52,4.04433993]
[1641129316359,30.42540957,175.53,175.52,4.04433993]
[1641129317965,30.42540957,175.53,175.51,4.04433993]
[1641129318163,35.44140957,175.53,175.51,4.04433993]
[1641129318763,2.76061957,175.52,175.5,4.04433993]
[1641129320066,2.76061957,175.52,175.5,3.993e-05]
[1641129320568,2.76061957,175.52,175.46,12.12788834]
[1641129320767,2.76061957,175.52,175.45,18.24779889]
[1641129321466,2.76061957,175.52,175.45,19.53125985]
[1641129321867,8.59761957,175.52,175.45,19.53125985]
[1641129322372,5.837,175.52,175.45,13.4113493]
[1641129322570,5.837,175.52,175.45,1.28346096]
[1641129322969,55.32958,175.53,175.45,1.28346096]
[1641129325477,27.66479,175.49,175.45,1.28346096]
[1641129325679,32.72479,175.49,175.45,1.28346096]
[1641129327481,27.66479,175.46,175.45,1.28346096]
[1641129328883,27.66479,175.46,175.42,12.12788834]
[1641129329183,27.66479,175.46,175.4,1.28346096]
[1641129330587,27.66479,175.46,175.41,12.12788834]
[1641129333388,27.66479,175.46,175.42,12.12788834]
[1641129334187,27.66479,175.46,175.41,12.12788834]
[1641129336488,27.66479,175.46,175.42,12.12788834]
[1641129336689,31.727,175.48,175.42,12.12788834]
[1641129337289,31.727,175.48,175.43,12.12788834]
[1641129337888,39.69325322,175.51,175.43,12.12788834]
[1641129338089,12.02846322,175.51,175.43,16.67188834]
[1641129338289,43.38096322,175.52,175.44,12.12788834]
[1641129339292,2.76176013,175.51,175.45,12.12788834]
[1641129339491,27.66479,175.5,175.45,12.12788834]
[1641129340292,7.16576013,175.51,175.45,12.12788834]
[1641129340693,4.404,175.51,175.45,12.12788834]
[1641129341296,7.404,175.51,175.45,12.12788834]
[1641129341494,27.66479,175.49,175.44,12.12788834]
[1641129343498,43.38096322,175.52,175.44,12.12788834]
[1641129344401,2.76174185,175.51,175.45,12.12788834]
[1641129347303,8.76074185,175.51,175.45,12.12788834]
[1641129348206,2.76174185,175.5,175.45,12.12788834]
[1641129349304,2.76174185,175.5,175.46,3.0]
[1641129350006,2.76174185,175.51,175.47,3.0]
[1641129350906,12.02846322,175.58,175.5,12.12788834]
[1641129351506,27.66479,175.57,175.5,12.12788834]
[1641129352606,33.51679,175.57,175.5,12.12788834]
[1641129353508,2.76174185,175.56,175.5,19.53101548]
[1641129357214,2.76174185,175.56,175.51,12.12788834]
[1641129361414,2.76174185,175.56,175.5,1.28346096]
[1641129361614,27.66479,175.54,175.5,1.28346096]
[1641129362317,2.76174185,175.53,175.5,1.28346096]
[1641129362517,9.60974185,175.53,175.5,1.28346096]
[1641129362819,6.848,175.53,175.49,31.5424]
[1641129363018,6.848,175.53,175.48,12.12788834]
[1641129363617,27.66479,175.51,175.48,12.12788834]
[1641129363819,27.66479,175.51,175.47,12.12788834]
[1641129364518,2.76177639,175.5,175.45,12.12788834]
[1641129365621,27.66479,175.51,175.45,12.12788834]
[1641129366221,27.66479,175.51,175.43,7.40271163]
[1641129366222,2.76213322,175.5,175.43,19.53059997]
[1641129367324,39.69325322,175.51,175.43,19.53059997]
[1641129367325,27.66479,175.51,175.43,19.53059997]
[1641129367523,27.66479,175.51,175.43,12.12788834]
[1641129367925,2.76199161,175.5,175.44,12.12788834]
[1641129368726,27.66479,175.51,175.44,12.12788834]
[1641129368926,30.42676872,175.51,175.44,12.12788834]
[1641129369426,2.76174248,175.5,175.45,12.12788834]
[1641129369927,2.76172093,175.51,175.45,12.12788834]
[1641129370926,30.3247,175.52,175.45,12.12788834]
[1641129371528,2.76141051,175.51,175.45,12.12788834]
[1641129372127,2.76141051,175.51,175.45,15.12788834]
[1641129372833,27.66479,175.53,175.45,15.12788834]
[1641129373032,27.66479,175.53,175.47,12.12788834]
[1641129373934,27.66479,175.53,175.48,12.12788834]
[1641129374134,21.19364795,175.53,175.48,12.12788834]
[1641129374533,17.98536973,175.57,175.48,12.12788834]
[1641129375134,2.76058455,175.56,175.49,12.12788834]
[1641129375735,5.76058455,175.56,175.49,12.12788834]
[1641129375937,2.76058455,175.56,175.49,12.12788834]
[1641129376137,33.34918455,175.56,175.48,12.12788834]
[1641129376337,27.66479,175.54,175.48,12.12788834]
[1641129377540,2.76058455,175.53,175.47,19.53059997]
[1641129378043,7.75558455,175.53,175.47,19.53059997]
[1641129378441,7.75558455,175.53,175.48,12.12788834]
[1641129379242,2.76058455,175.52,175.46,12.12788834]
[1641129379841,2.76058455,175.52,175.47,12.12788834]
[1641129380749,2.76058455,175.52,175.51,4.04478618]
[1641129381951,2.76058455,175.53,175.5,4.04478618]
[1641129384151,2.76058455,175.53,175.49,4.04478618]
[1641129386454,7.28658455,175.53,175.49,4.04478618]
[1641129386654,27.66479,175.5,175.49,4.04478618]
[1641129388057,27.66479,175.5,175.47,4.04478618]
[1641129388660,2.75785322,175.49,175.46,4.04478618]
[1641129388856,8.95585322,175.49,175.46,4.04478618]
[1641129389457,3.0,175.48,175.46,4.04478618]
[1641129389955,3.0,175.48,175.47,4.03859794]
[1641129390656,30.66479,175.48,175.47,4.03859794]
[1641129391056,30.66479,175.48,175.43,6.10794532]
[1641129391057,33.42327711,175.48,175.43,6.10794532]
[1641129391260,33.42327711,175.48,175.39,12.12788834]
[1641129392057,2.75848711,175.47,175.39,12.12788834]
[1641129392661,27.66479,175.45,175.39,12.12788834]
[1641129393360,33.98179,175.45,175.39,12.12788834]
[1641129395165,33.98179,175.45,175.41,12.12788834]
[1641129395464,6.317,175.45,175.41,12.12788834]
[1641129396070,6.317,175.45,175.4,12.12788834]
[1641129396666,27.66479,175.43,175.4,12.12788834]
[1641129398570,27.66479,175.43,175.39,12.12788834]
[1641129400070,6.317,175.45,175.39,12.12788834]
[1641129400268,31.2996,175.47,175.39,12.12788834]
[1641129400972,2.7635391,175.46,175.4,12.12788834]
[1641129401970,2.7635391,175.46,175.41,12.12788834]
[1641129404873,27.66479,175.43,175.41,12.12788834]
[1641129405073,32.47479,175.43,175.41,12.12788834]
[1641129406574,32.47479,175.43,175.42,12.12788834]
[1641129407876,4.81,175.43,175.4,1.28349763]
[1641129408976,32.47479,175.43,175.37,12.12788834]
[1641129412280,32.47479,175.43,175.36,19.49611703]
[1641129414684,32.47479,175.43,175.39,12.12788834]
[1641129416284,4.81,175.43,175.39,12.12788834]
[1641129416484,27.66479,175.46,175.39,12.12788834]
[1641129417284,2.7641113,175.45,175.39,12.12788834]
[1641129417486,7.1661113,175.45,175.39,12.12788834]
[1641129419086,2.7641113,175.44,175.39,12.12788834]
[1641129419288,27.66479,175.43,175.39,12.12788834]
[1641129420789,4.402,175.45,175.39,12.12788834]
[1641129421389,2.76416506,175.44,175.39,12.12788834]
[1641129423193,27.66479,175.43,175.39,12.12788834]
[1641129423596,27.66479,175.43,175.4,12.12788834]
[1641129424596,27.66479,175.43,175.38,12.12788834]
[1641129426198,4.402,175.45,175.38,12.12788834]
[1641129426398,27.66479,175.46,175.38,12.12788834]
[1641129427502,2.75733445,175.45,175.37,12.12788834]
[1641129427699,7.16533445,175.45,175.37,12.12788834]
[1641129428301,4.408,175.45,175.37,12.12788834]
[1641129428704,7.408,175.45,175.37,12.12788834]
[1641129428904,3.0,175.43,175.37,12.12788834]
[1641129429305,3.0,175.43,175.34,27.66479]
[1641129429306,27.66479,175.4,175.35,1.28349763]
[1641129429505,32.24979,175.4,175.35,1.28349763]
[1641129430007,32.24979,175.4,175.33,1.28349763]
[1641129432105,32.24979,175.4,175.33,19.51497089]
[1641129434616,4.585,175.4,175.34,12.12788834]
[1641129434810,30.22289028,175.43,175.34,12.12788834]
[1641129435410,30.22289028,175.43,175.34,39.79267834]
[1641129435812,30.22289028,175.43,175.35,12.12788834]
[1641129436412,30.22289028,175.43,175.35,19.51497089]
[1641129437516,27.66479,175.41,175.35,19.51497089]
[1641129437711,32.65679,175.41,175.35,19.51497089]
[1641129438716,2.76519934,175.4,175.35,12.12788834]
[1641129441720,30.42998934,175.4,175.35,12.12788834]
[1641129442321,2.76519934,175.4,175.35,12.12788834]
[1641129443122,2.76519934,175.39,175.34,12.12788834]
[1641129443723,2.76519934,175.4,175.34,12.12788834]
[1641129445024,30.42998934,175.4,175.34,12.12788834]
[1641129445425,2.76519934,175.39,175.34,12.12788834]
[1641129446629,4.992,175.41,175.34,12.12788834]
[1641129446828,4.992,175.41,175.33,1.28349763]
[1641129446829,33.22289028,175.43,175.33,1.28349763]
[1641129447128,27.66479,175.4,175.33,1.28349763]
[1641129449331,32.43279,175.4,175.33,1.28349763]
[1641129450131,32.43279,175.4,175.34,4.02890272]
[1641129454234,2.76561299,175.39,175.38,4.02890272]
[1641129456638,2.76561299,175.39,175.37,4.02890272]
[1641129457641,2.76561299,175.39,175.38,4.02890272]
[1641129458142,32.43279,175.4,175.38,4.02890272]
[1641129458641,27.66479,175.4,175.38,4.02890272]
[1641129459341,70.02105001,175.43,175.38,4.02890272]
[1641129460244,2.76506954,175.42,175.41,4.02890272]
[1641129460443,6.97106954,175.42,175.41,4.02890272]
[1641129461144,6.97106954,175.42,175.4,4.02890272]
[1641129461745,2.76506954,175.41,175.4,4.02890272]
[1641129463145,2.76506954,175.42,175.38,1.28349763]
[1641129463947,2.76506954,175.42,175.41,4.04719954]
[1641129465248,2.76506954,175.42,175.4,4.04719954]
[1641129465647,2.76506954,175.42,175.39,4.04719954]
[1641129467449,2.76506954,175.43,175.39,4.04719954]
[1641129468250,5.76506954,175.44,175.39,4.04719954]
[1641129468450,27.66479,175.43,175.39,4.04719954]
[1641129469751,4.03799679,175.42,175.39,4.04719954]
[1641129470352,4.03726732,175.46,175.38,12.12788834]
[1641129470553,4.03726732,175.46,175.42,27.66479]
[1641129470953,0.49706732,175.46,175.42,30.66479]
[1641129471155,0.49706732,175.46,175.42,27.66479]
[1641129471655,12.13336973,175.49,175.42,27.66479]
[1641129472053,12.13336973,175.51,175.43,1.28349763]
[1641129472254,43.74636973,175.51,175.43,1.28349763]
[1641129472857,2.75740346,175.5,175.43,1.28349763]
[1641129473054,8.45940346,175.5,175.43,1.28349763]
[1641129474255,2.75740346,175.49,175.43,1.28349763]
[1641129475656,2.75740346,175.5,175.43,1.28349763]
[1641129476356,45.82877319,175.51,175.43,1.28349763]
[1641129476559,14.89077319,175.51,175.43,31.41099763]
[1641129477055,14.89077319,175.51,175.44,1.28349763]
[1641129478861,12.13336973,175.5,175.44,1.28349763]
[1641129479465,14.89077319,175.51,175.44,1.28349763]
[1641129482266,2.75740346,175.51,175.44,19.52934153]
[1641129482867,14.89077319,175.51,175.44,1.28349763]
[1641129483668,2.75740346,175.51,175.45,12.12788834]
[1641129484769,2.75740346,175.51,175.44,19.52925208]
[1641129487172,8.65640346,175.51,175.44,19.52925208]
[1641129487873,3.0,175.48,175.44,19.52925208]
[1641129488173,3.0,175.49,175.44,1.28349763]
[1641129488773,27.66479,175.47,175.44,1.28349763]
[1641129488974,33.45279,175.47,175.4,19.52969709]
[1641129489975,2.75740346,175.46,175.4,19.52969709]
[1641129491277,2.75740346,175.46,175.41,12.12788834]
[1641129492080,2.75740346,175.46,175.4,19.52969709]
[1641129492879,2.75740346,175.49,175.42,12.12788834]
[1641129493579,14.89077319,175.49,175.41,12.12788834]
[1641129493779,19.09977319,175.49,175.41,12.12788834]
[1641129494379,2.75740346,175.48,175.42,12.12788834]
[1641129494982,2.75740346,175.48,175.41,12.12788834]
[1641129495581,4.209,175.49,175.41,12.12788834]
[1641129496181,2.75050306,175.48,175.4,1.28349763]
[1641129496783,30.41529306,175.48,175.4,1.28349763]
[1641129497083,42.496819,175.48,175.4,19.52964329]
[1641129497787,2.75050306,175.47,175.4,19.52964329]
[1641129498387,39.74631594,175.48,175.4,19.52964329]
[1641129499386,2.76360989,175.47,175.4,19.52964329]
[1641129499790,12.08152594,175.48,175.4,19.52964329]
[1641129499791,14.84510814,175.48,175.4,19.52964329]
[1641129500390,12.83070159,175.49,175.4,19.52964329]
[1641129501188,12.13910069,175.48,175.4,19.52964329]
[1641129502690,2.76358876,175.48,175.41,12.12788834]
[1641129503289,42.56741454,175.49,175.41,12.12788834]
[1641129503790,2.76352385,175.48,175.41,12.12788834]
[1641129504590,12.13910069,175.49,175.41,12.12788834]
[1641129504990,27.66479,175.48,175.41,12.12788834]
[1641129506091,14.90262648,175.47,175.4,1.28349763]
[1641129506893,14.90262648,175.47,175.39,43.14498834]
[1641129507492,27.66479,175.48,175.39,43.14498834]
[1641129507699,39.80438488,175.48,175.4,19.52895294]
[1641129508396,2.76374933,175.47,175.4,19.52895294]
[1641129508795,39.80438488,175.48,175.4,19.52895294]
[1641129509595,2.76368745,175.47,175.4,19.52895294]
[1641129510294,12.13959488,175.47,175.4,1.28273914]
[1641129510997,12.13927197,175.48,175.4,47.19369989]
[1641129511598,12.13927197,175.48,175.4,50.19369989]
[1641129511796,12.13927197,175.48,175.41,1.28273914]
[1641129512897,2.76367409,175.49,175.42,12.12788834]
[1641129513499,14.90243226,175.5,175.42,12.12788834]
[1641129514599,14.90243226,175.5,175.41,19.52880877]
[1641129515903,14.90243226,175.5,175.41,13.41068495]
[1641129516105,12.13927197,175.47,175.4,1.28279661]
[1641129516304,16.57627197,175.47,175.4,1.28279661]
[1641129516803,2.76316029,175.46,175.39,43.14498834]
[1641129517605,4.437,175.47,175.4,1.28233172]
[1641129517805,34.2823,175.47,175.4,1.28233172]
[1641129518305,2.762942,175.46,175.4,1.28233172]
[1641129518807,34.2823,175.47,175.4,1.28233172]
[1641129519106,27.66479,175.46,175.4,1.28233172]
[1641129519606,30.42773923,175.46,175.4,1.28233172]
[1641129520307,27.66479,175.46,175.4,1.28233172]
[1641129520506,2.763221,175.45,175.4,1.28233172]
[1641129521807,27.66479,175.46,175.39,31.0171]
[1641129522808,2.76327624,175.45,175.4,1.28230148]
[1641129523407,27.66479,175.46,175.39,31.0171]
[1641129523607,34.2823,175.47,175.39,31.0171]
[1641129524212,14.90005311,175.46,175.4,1.28230041]
[1641129524910,34.2823,175.47,175.39,31.0171]
[1641129525110,27.66479,175.44,175.39,31.0171]
[1641129525713,2.7632808,175.43,175.4,1.28230107]
[1641129526328,12.13674559,175.46,175.39,31.0171]
[1641129527219,14.90089403,175.46,175.4,1.28270678]
[1641129527417,42.56568403,175.46,175.4,1.28270678]
[1641129527821,2.76414844,175.45,175.39,31.0171]
[1641129528718,39.80153559,175.46,175.4,1.2827074]
[1641129529219,2.76414355,175.45,175.39,31.0171]
[1641129529822,39.80153559,175.46,175.4,1.28270543]
[1641129530222,12.13674559,175.46,175.4,1.28270543]
[1641129530622,2.75481308,175.45,175.4,3.0]
[1641129531021,2.75481308,175.45,175.39,31.0171]
[1641129531221,12.13674559,175.48,175.4,3.0]
[1641129531427,4.03245436,175.48,175.43,4.03245436]
[1641129532225,2.75395612,175.5,175.44,4.03243607]
[1641129532926,2.75395612,175.5,175.43,4.03257735]
[1641129533125,4.03257735,175.48,175.43,4.03257735]
[1641129533525,8.95157735,175.48,175.43,4.03257735]
[1641129533725,32.58379,175.48,175.41,1.27849824]
[1641129534628,4.0326522,175.47,175.42,4.0326522]
[1641129535229,4.919,175.48,175.41,1.27849824]
[1641129535431,71.74133559,175.51,175.41,1.27849824]
[1641129535929,71.74133559,175.51,175.43,4.03261171]
[1641129536131,4.03261171,175.47,175.43,4.03261171]
[1641129536330,4.03261171,175.47,175.43,9.07761171]
[1641129536730,4.03233521,175.49,175.44,4.03233521]
[1641129537432,59.60459,175.51,175.41,1.27849824]
[1641129538334,4.03226615,175.49,175.44,4.03226615]
[1641129539136,5.97,175.5,175.41,19.50393459]
[1641129540239,5.97,175.5,175.41,13.40638658]
[1641129540538,4.03246734,175.48,175.43,4.03246734]
[1641129541136,2.75383332,175.5,175.44,4.03234272]
[1641129541837,4.03224048,175.49,175.41,1.27849824]
[1641129542440,59.60459,175.51,175.44,4.03217527]
[1641129543141,4.03212437,175.49,175.45,4.03212437]
[1641129543939,4.0320715,175.5,175.41,19.50388612]
[1641129544439,4.04564411,175.47,175.43,12.12788834]
[1641129545642,31.052,175.54,175.43,12.12788834]
[1641129545841,31.052,175.54,175.44,30.2618]
[1641129546244,27.66479,175.53,175.44,30.2618]
[1641129546443,4.04558549,175.47,175.45,1.27849824]
[1641129547242,40.49193668,175.53,175.43,39.79267834]
[1641129547443,12.82714668,175.52,175.44,29.2138]
[1641129548044,4.04521638,175.49,175.45,19.52855837]
[1641129548954,4.04531729,175.48,175.45,1.28287067]
[1641129549449,4.01908955,175.53,175.44,29.2138]
[1641129550955,4.01908955,175.52,175.44,29.2138]
[1641129551151,9.07908955,175.52,175.44,29.2138]
[1641129551552,4.01908955,175.51,175.44,29.2138]
[1641129554461,4.01908955,175.52,175.44,29.2138]
[1641129554664,9.70908955,175.52,175.44,29.2138]
[1641129555264,9.70908955,175.52,175.45,1.27664078]
[1641129555963,5.69,175.52,175.45,1.27664078]
[1641129556166,27.66479,175.52,175.45,1.27664078]
[1641129556766,31.69075375,175.52,175.45,1.27664078]
[1641129557365,27.66479,175.52,175.45,1.27664078]
[1641129558067,31.69076737,175.52,175.45,1.27664078]
[1641129558567,27.66479,175.52,175.45,1.27664078]
[1641129558771,4.02598678,175.51,175.45,1.27664078]
[1641129559170,27.66479,175.52,175.45,1.27664078]
[1641129559869,4.02599332,175.51,175.45,5.3026341]
[1641129560570,4.03998923,175.49,175.47,4.03998923]
[1641129561870,2.7588948,175.51,175.47,4.03998923]
[1641129562073,4.03993681,175.5,175.48,4.03993681]
[1641129562473,27.66479,175.52,175.44,41.34168834]
[1641129562674,4.03993197,175.49,175.47,4.03993197]
[1641129563476,12.05726866,175.53,175.45,1.28110037]
[1641129564177,4.03993628,175.49,175.47,4.03993628]
[1641129564875,14.81610521,175.53,175.45,1.28109992]
[1641129565175,27.66479,175.5,175.45,1.28109992]
[1641129565376,27.66479,175.5,175.47,4.03994143]
[1641129565576,4.03994143,175.49,175.47,4.03994143]
[1641129565978,12.05726866,175.53,175.44,29.2138]
[1641129566178,12.05726866,175.53,175.45,1.28109529]
[1641129566879,4.03996656,175.49,175.47,4.03996656]
[1641129567279,27.66479,175.5,175.44,29.2138]
[1641129567479,27.66479,175.5,175.45,1.28109718]
[1641129568078,27.66479,175.5,175.44,29.2138]
[1641129568281,4.03997103,175.49,175.47,4.03997103]
[1641129569186,12.05726866,175.53,175.45,1.28109793]
[1641129569384,27.66479,175.5,175.45,1.28109793]
[1641129570488,4.03996289,175.49,175.47,4.03996289]
[1641129570886,4.03987518,175.5,175.48,4.03987518]
[1641129571586,27.66479,175.51,175.45,1.28109793]
[1641129572287,4.03986953,175.5,175.48,4.03986953]
[1641129572687,70.77405866,175.54,175.45,1.28109793]
[1641129573286,70.77405866,175.54,175.46,27.66479]
[1641129573489,4.03959739,175.51,175.49,4.03959739]
[1641129573987,58.71679,175.54,175.46,27.66479]
[1641129574186,58.71679,175.54,175.47,1.28109793]
[1641129574789,4.03824292,175.52,175.49,4.03824292]
[1641129575785,4.03825976,175.51,175.47,1.28109793]
[1641129576488,37.802,175.54,175.47,1.28109793]
[1641129576690,2.75752975,175.53,175.49,4.03826539]
[1641129577389,31.052,175.54,175.48,4.03826182]
[1641129577588,4.03826182,175.51,175.48,4.03826182]
[1641129577992,31.052,175.54,175.47,27.66479]
[1641129578189,2.75745793,175.53,175.49,4.03820009]
[1641129578689,31.052,175.54,175.47,27.66479]
[1641129578890,4.03819141,175.51,175.47,27.66479]
[1641129579393,4.03540629,175.52,175.48,5.31527112]
[1641129580193,4.03555467,175.51,175.47,27.66479]
[1641129580794,9.76255467,175.51,175.44,41.34168834]
[1641129580994,5.727,175.51,175.48,5.315403]
[1641129581396,27.66479,175.5,175.48,5.315403]
[1641129581595,4.03607818,175.49,175.45,5.31587582]
[1641129582596,5.727,175.51,175.44,29.2138]
[1641129583295,4.03607373,175.49,175.46,4.03607373]
[1641129583996,5.727,175.51,175.44,56.87859]
[1641129584197,39.72205866,175.53,175.44,56.87859]
[1641129584799,39.72205866,175.53,175.44,61.92459]
[1641129584997,14.82002731,175.52,175.48,4.04559178]
[1641129585598,27.66479,175.53,175.45,1.28283313]
[1641129585801,39.8012928,175.53,175.49,4.04550093]
[1641129586399,12.1365028,175.53,175.45,19.52863466]
[1641129586600,2.76255935,175.52,175.45,19.52863466]
[1641129587103,14.89904471,175.53,175.49,4.04539474]
[1641129587800,31.052,175.54,175.45,19.52863466]
[1641129588501,14.89874966,175.53,175.49,4.04540048]
[1641129589102,31.052,175.54,175.45,19.52863466]
[1641129589502,58.71679,175.54,175.45,19.52863466]
[1641129589803,2.7625229,175.53,175.49,4.04537746]
[1641129590001,2.7625229,175.53,175.49,10.54637746]
[1641129590202,14.89865527,175.53,175.49,10.54637746]
[1641129591104,58.71679,175.54,175.49,6.501]
[1641129591805,2.76241759,175.53,175.5,5.32814585]
[1641129593305,70.85263517,175.54,175.46,12.12788834]
[1641129593506,12.13584517,175.53,175.49,4.04517973]
[1641129593907,2.76147528,175.53,175.48,4.04387955]
[1641129594712,2.76147528,175.53,175.45,1.28240427]
[1641129594914,14.89310952,175.53,175.45,1.28240427]
[1641129595315,14.89310952,175.53,175.48,4.04387103]
[1641129596011,14.89310952,175.53,175.45,1.28240427]
[1641129596613,14.89310952,175.53,175.49,4.0437998]
[1641129597214,14.89310952,175.53,175.45,19.52592513]
[1641129598016,14.89310952,175.53,175.49,4.0438027]
[1641129598916,14.89310952,175.53,175.45,19.52592513]
[1641129599618,14.89310952,175.53,175.49,4.04381506]
[1641129600620,14.89310952,175.53,175.45,19.52592513]
[1641129601419,14.89310952,175.53,175.49,4.04381654]
[1641129602117,14.89310952,175.53,175.45,13.41029261]
[1641129602318,14.89310952,175.53,175.48,4.04391974]
[1641129602923,14.89310952,175.53,175.45,1.28240427]
[1641129603720,14.89310952,175.53,175.46,27.66479]
[1641129603920,12.13163424,175.52,175.49,4.0453462]
[1641129604821,12.82500879,175.53,175.47,1.28240427]
[1641129605523,2.76147528,175.53,175.47,6.212]
[1641129605824,14.89745853,175.53,175.49,4.04532775]
[1641129607127,2.76147528,175.53,175.5,4.04500344]
[1641129607725,38.98479,175.56,175.46,39.79267834]
[1641129607925,12.13603615,175.53,175.49,4.04534538]
[1641129608527,12.82601819,175.55,175.45,18.79588834]
[1641129608727,30.5539,175.54,175.45,18.79588834]
[1641129608927,3.0,175.53,175.45,12.12788834]